[Event "Icelandic Team-ch Kvika Leagu 2023-24"]
[Site "Reykjavik"]
[Date "2024.03.02"]
[Round "9"]
[White "Pantzar, Milton"]
[Black "Laurusas, Tomas"]
[Result "0-1"]
[ECO "D13"]
[WhiteElo "2472"]
[BlackElo "2586"]
[Annotator "RC"]
[PlyCount "102"]
[EventDate "2024.02.29"]
[EventType "team-tourn"]
[EventCountry "ISL"]
[SourceTitle "playchess.com"]
[Source "ChessBase"]
[SourceQuality "1"]
[TimeControl "40/5400+30:900+30"]

1. d4 {[%emt 0:00:09]} d5 {[%emt 0:00:06]} 2. c4 {[%emt 0:00:59]} c6 {[%emt 0:00:05]} 3. cxd5 {[%emt 0:01:55]} cxd5 {[%emt 0:00:05]} 4. Nc3 {[%emt 0:00:07]} Nf6 {[%emt 0:00:10]} 5. Bf4 {[%emt 0:00:18]} Nc6 {[%emt 0:00:25]} 6. e3 {[%emt 0:00:14]} e6 {[%emt 0:01:22]} 7. Nf3 {[%emt 0:02:39]} Bd6 {[%emt 0:04:58]} 8. Bxd6 {[%emt 0:06:27]} Qxd6 {[%emt 0:00:09]} 9. Bd3 {[%emt 0:00:12]} O-O {[%emt 0:00:35]} 10. O-O {[%emt 0:00:11]} Bd7 {[%emt 0:00:31]} 11. Rc1 {[%emt 0:04:20]} Rac8 {[%emt 0:04:03]} 12. Qe2 {[%emt 0:03:16]} Rfd8 {[%emt 0:06:07]} 13. Rfd1 {[%emt 0:02:35]} Be8 {[%emt 0:01:27]} 14. h3 {[%emt 0:08:53]} a6 {[%emt 0:12:19]} 15. Bb1 {[%emt 0:05:56]} Rc7 {[%emt 0:05:22]} 16. e4 {[%emt 0:12:35]} dxe4 {[%emt 0:00:34]} 17. Nxe4 {[%emt 0:00:08]} Qe7 {[%emt 0:01:56]} 18. Nxf6+ {[%emt 0:15:53]} Qxf6 {[%emt 0:01:07]} 19. Be4 {[%emt 0:05:25]} h6 {[%emt 0:26:23]} 20. Qe3 {[%emt 0:03:50]} Rdc8 {[%emt 0:05:37]} 21. Rc3 {[%emt 0:02:29]} Ne7 {[%emt 0:02:48]} 22. Rdc1 {[%emt 0:02:47]} Rxc3 {[%emt 0:00:50]} 23. Rxc3 {[%emt 0:00:08]} Rxc3 {[%emt 0:04:32]} 24. bxc3 {[%emt 0:06:07]} Bc6 {[%emt 0:01:35]} 25. Ne5 {[%emt 0:01:14]} Nf5 {[%emt 0:04:48]} 26. Bxf5 {[%emt 0:06:05]} Qxf5 {[%emt 0:00:08]} 27. Nxc6 {[%emt 0:00:26]} bxc6 {[%emt 0:00:07]} 28. Qe2 {[%emt 0:01:24]} a5 {[%emt 0:00:28]} 29. Qb2 {[%emt 0:05:34]} Qb5 {[%emt 0:04:21]} 30. Qa3 {[%emt 0:01:41]} Kh7 {[%emt 0:01:09]} 31. g4 {[%emt 0:00:41]} Qd5 {[%emt 0:01:38]} 32. Qb3 {[%emt 0:00:40]} Qe4 {[%emt 0:05:36]} 33. Qd1 {[%emt 0:00:30]} Kg8 {[%emt 0:01:12]} 34. Kh2 {[%emt 0:01:02]} e5 {[%emt 0:00:12]} 35. Kg3 {[%emt 0:00:29]} Qd5 {[%emt 0:02:35]} 36. Qb3 {[%emt 0:00:22]} Qd6 {[%emt 0:00:01]} 37. dxe5 {[%emt 0:00:14]} Qxe5+ {[%emt 0:00:02]} 38. Kg2 {[%emt 0:00:47]} Qc5 {[%emt 0:02:12]} 39. a4 {[%emt 0:00:14]} g6 {[%emt 0:00:34]} 40. Qb8+ {[%emt 0:00:00]} Kg7 {[%emt 0:00:00]} 41. Qb3 {[%emt 0:05:21]} Kf6 {[%emt 0:01:47]} 42. c4 {[%emt 0:04:09]} Ke6 {[%emt 0:03:34]} 43. Kf3 {[%emt 0:02:27]} f5 {[%emt 0:03:08]} 44. Qd3 {[%emt 0:01:30]} Qe5 {[%emt 0:02:57]} 45. gxf5+ {[%emt 0:04:58]} Qxf5+ {[%emt 0:02:38]} 46. Qxf5+ {[%emt 0:00:09]} Kxf5 {[%emt 0:00:04]} 47. Ke3 {[%emt 0:00:33]} g5 {[%emt 0:03:08]} 48. Kf3 {[%emt 0:00:36]} h5 {[%emt 0:02:10]} 49. Kg3 {[%emt 0:00:17]} h4+ {[%emt 0:01:25]} 50. Kg2 {[%emt 0:00:33]} Ke4 {[%emt 0:00:30]} 51. c5 {[%emt 0:00:15]} Kf4 {[%emt 0:00:49]} 0-1

[Event "Icelandic Team-ch Kvika Leagu 2023-24"]
[Site "Reykjavik"]
[Date "2024.03.02"]
[Round "9"]
[White "Kjartansson, Gudmundur"]
[Black "Lomasov, Semyon"]
[Result "1/2-1/2"]
[ECO "A34"]
[WhiteElo "2465"]
[BlackElo "2565"]
[Annotator "RC"]
[PlyCount "69"]
[EventDate "2024.02.29"]
[EventType "team-tourn"]
[EventCountry "ISL"]
[SourceTitle "playchess.com"]
[Source "ChessBase"]
[SourceQuality "1"]
[TimeControl "40/5400+30:900+30"]

1. Nf3 {[%emt 0:00:16]} Nf6 {[%emt 0:00:17]} 2. c4 {[%emt 0:00:30]} c5 {[%emt 0:00:07]} 3. Nc3 {[%emt 0:00:26]} Nc6 {[%emt 0:00:12]} 4. g3 {[%emt 0:00:21]} d5 {[%emt 0:02:10]} 5. cxd5 {[%emt 0:00:20]} Nxd5 {[%emt 0:00:06]} 6. Bg2 {[%emt 0:00:06]} Nc7 {[%emt 0:00:12]} 7. a3 {[%emt 0:01:51]} e6 {[%emt 0:03:10]} 8. O-O {[%emt 0:06:34]} Be7 {[%emt 0:00:42]} 9. e3 {[%emt 0:01:10]} O-O {[%emt 0:01:27]} 10. d4 {[%emt 0:03:43]} cxd4 {[%emt 0:02:07]} 11. Nxd4 {[%emt 0:00:46]} Bd7 {[%emt 0:00:48]} 12. Nde2 {[%emt 0:08:38]} Qc8 {[%emt 0:17:18]} 13. e4 {[%emt 0:03:09]} Rd8 {[%emt 0:03:10]} 14. Qc2 {[%emt 0:15:47]} Ne5 {[%emt 0:10:25]} 15. Bf4 {[%emt 0:05:19]} Bf6 {[%emt 0:00:17]} 16. Rfd1 {[%emt 0:05:01]} Nb5 {[%emt 0:00:54]} 17. Rac1 {[%emt 0:00:27]} Be8 {[%emt 0:08:39]} 18. Rxd8 {[%emt 0:08:37]} Qxd8 {[%emt 0:00:05]} 19. Nxb5 {[%emt 0:03:05]} Bxb5 {[%emt 0:00:03]} 20. Qc5 {[%emt 0:01:27]} Bxe2 {[%emt 0:03:12]} 21. Bxe5 {[%emt 0:00:07]} Bxe5 {[%emt 0:02:21]} 22. Qxe5 {[%emt 0:01:32]} Rc8 {[%emt 0:00:13]} 23. Qg5 {[%emt 0:17:11]} Rxc1+ {[%emt 0:03:05]} 24. Qxc1 {[%emt 0:00:03]} e5 {[%emt 0:03:47]} 25. Bf1 {[%emt 0:01:21]} Bxf1 {[%emt 0:01:36]} 26. Kxf1 {[%emt 0:00:10]} g6 {[%emt 0:02:14]} 27. Kg2 {[%emt 0:01:03]} b6 {[%emt 0:00:58]} 28. Qc6 {[%emt 0:01:40]} Qd4 {[%emt 0:02:26]} 29. b4 {[%emt 0:03:19]} Kg7 {[%emt 0:01:13]} 30. h4 {[%emt 0:00:04]} h5 {[%emt 0:02:06]} 31. b5 {[%emt 0:02:33]} Qd3 {[%emt 0:01:36]} 32. a4 {[%emt 0:00:09]} Qd4 {[%emt 0:00:38]} 33. Qc2 {[%emt 0:00:03]} Kg8 {[%emt 0:00:27]} 34. Kg1 {[%emt 0:00:02]} Kg7 {[%emt 0:00:12]} 35. Kg2 {[%emt 0:00:02]} 1/2-1/2

[Event "Icelandic Team-ch Kvika Leagu 2023-24"]
[Site "Reykjavik"]
[Date "2024.03.02"]
[Round "9"]
[White "Stefansson, Vignir Vatnar"]
[Black "Gretarsson, Helgi Ass"]
[Result "1-0"]
[ECO "C55"]
[WhiteElo "2464"]
[BlackElo "2477"]
[Annotator "RC"]
[PlyCount "112"]
[EventDate "2024.02.29"]
[EventType "team-tourn"]
[EventCountry "ISL"]
[SourceTitle "playchess.com"]
[Source "ChessBase"]
[SourceQuality "1"]
[TimeControl "40/5400+30:900+30"]

1. e4 {[%emt 0:04:32]} e5 {[%emt 0:00:24]} 2. Nf3 {[%emt 0:00:31]} Nc6 {[%emt 0:00:06]} 3. Bc4 {[%emt 0:00:08]} Nf6 {[%emt 0:00:06]} 4. d3 {[%emt 0:00:05]} Be7 {[%emt 0:01:09]} 5. O-O {[%emt 0:00:22]} O-O {[%emt 0:00:13]} 6. c3 {[%emt 0:00:03]} d6 {[%emt 0:00:15]} 7. a4 {[%emt 0:00:04]} Be6 {[%emt 0:15:36]} 8. Bxe6 {[%emt 0:02:58]} fxe6 {[%emt 0:00:02]} 9. b4 {[%emt 0:01:35]} a6 {[%emt 0:03:01]} 10. Nbd2 {[%emt 0:08:49]} Qe8 {[%emt 0:22:05]} 11. Qb3 {[%emt 0:04:44]} d5 {[%emt 0:08:25]} 12. Bb2 {[%emt 0:07:17]} Kh8 {[%emt 0:02:30]} 13. Rfe1 {[%emt 0:01:35]} Bd6 {[%emt 0:03:21]} 14. Nf1 {[%emt 0:02:29]} Qf7 {[%emt 0:17:46]} 15. b5 {[%emt 0:16:39]} Na5 {[%emt 0:03:32]} 16. Qc2 {[%emt 0:01:47]} Nd7 {[%emt 0:00:21]} 17. Bc1 {[%emt 0:05:24]} b6 {[%emt 0:03:36]} 18. Bd2 {[%emt 0:02:51]} Nc5 {[%emt 0:05:13]} 19. Rab1 {[%emt 0:03:25]} Nab7 {[%emt 0:01:23]} 20. Ng3 {[%emt 0:00:58]} Nd7 {[%emt 0:06:28]} 21. d4 {[%emt 0:03:56]} exd4 {[%emt 0:00:08]} 22. cxd4 {[%emt 0:00:08]} e5 {[%emt 0:02:41]} 23. Qc6 {[%emt 0:02:00]} Ra7 {[%emt 0:01:24]} 24. Qxd5 {[%emt 0:08:43]} Qxd5 {[%emt 0:00:08]} 25. exd5 {[%emt 0:00:02]} exd4 {[%emt 0:00:02]} 26. Nxd4 {[%emt 0:00:43]} axb5 {[%emt 0:00:45]} 27. axb5 {[%emt 0:00:08]} Nf6 {[%emt 0:00:12]} 28. Ne6 {[%emt 0:00:29]} Rf7 {[%emt 0:01:27]} 29. Nf4 {[%emt 0:07:40]} Kg8 {[%emt 0:02:04]} 30. Rbd1 {[%emt 0:00:47]} Ra4 {[%emt 0:00:15]} 31. Nge2 {[%emt 0:01:36]} Re7 {[%emt 0:00:47]} 32. g3 {[%emt 0:00:27]} Rc4 {[%emt 0:00:34]} 33. Be3 {[%emt 0:00:49]} Bc5 {[%emt 0:00:18]} 34. Ng2 {[%emt 0:04:56]} Nd6 {[%emt 0:00:27]} 35. Bxc5 {[%emt 0:02:37]} Rxc5 {[%emt 0:00:02]} 36. Ne3 {[%emt 0:00:06]} Nxb5 {[%emt 0:00:12]} 37. Rd3 {[%emt 0:00:20]} g6 {[%emt 0:01:29]} 38. Nf4 {[%emt 0:00:17]} Rc3 {[%emt 0:00:28]} 39. Rd2 {[%emt 0:00:44]} Nd6 {[%emt 0:00:32]} 40. Ra1 {[%emt 0:00:00]} Nfe4 {[%emt 0:00:00]} 41. Re2 {[%emt 0:00:52]} Nc5 {[%emt 0:11:56]} 42. Ra7 {[%emt 0:00:49]} g5 {[%emt 0:01:56]} 43. Nh5 {[%emt 0:01:54]} Kf7 {[%emt 0:00:23]} 44. Rea2 {[%emt 0:01:42]} Kg6 {[%emt 0:01:50]} 45. g4 {[%emt 0:00:04]} Nd3 {[%emt 0:00:15]} 46. Ra8 {[%emt 0:01:21]} Rc1+ {[%emt 0:01:40]} 47. Kg2 {[%emt 0:00:03]} Nf4+ {[%emt 0:00:06]} 48. Nxf4+ {[%emt 0:00:22]} gxf4 {[%emt 0:00:01]} 49. Nc2 {[%emt 0:00:08]} Re2 {[%emt 0:01:51]} 50. Nd4 {[%emt 0:01:03]} Rxa2 {[%emt 0:00:04]} 51. Rxa2 {[%emt 0:00:05]} Kf6 {[%emt 0:00:07]} 52. Nc6 {[%emt 0:00:51]} Rd1 {[%emt 0:00:38]} 53. Ra7 {[%emt 0:03:04]} Rd3 {[%emt 0:01:05]} 54. Rxc7 {[%emt 0:01:24]} Ne4 {[%emt 0:00:01]} 55. Rf7+ {[%emt 0:00:30]} Kg5 {[%emt 0:01:08]} 56. Ne5 {[%emt 0:00:47]} Rd4 {[%emt 0:00:34]} 1-0

[Event "Icelandic Team-ch Kvika Leagu 2023-24"]
[Site "Reykjavik"]
[Date "2024.03.02"]
[Round "9"]
[White "Olsen, Filip Boe"]
[Black "Urkedal, Frode Olav Olsen"]
[Result "0-1"]
[ECO "A50"]
[WhiteElo "2456"]
[BlackElo "2536"]
[Annotator "RC"]
[PlyCount "120"]
[EventDate "2024.02.29"]
[EventType "team-tourn"]
[EventCountry "ISL"]
[SourceTitle "playchess.com"]
[Source "ChessBase"]
[SourceQuality "1"]
[TimeControl "40/5400+30:900+30"]

1. d4 {[%emt 0:00:09]} Nf6 {[%emt 0:00:03]} 2. c4 {[%emt 0:00:09]} e6 {[%emt 0:00:05]} 3. Bf4 {[%emt 0:02:40]} Bb4+ {[%emt 0:01:46]} 4. Nd2 {[%emt 0:00:11]} c5 {[%emt 0:03:32]} 5. dxc5 {[%emt 0:01:11]} Bxc5 {[%emt 0:01:10]} 6. e3 {[%emt 0:00:11]} O-O {[%emt 0:00:18]} 7. Ngf3 {[%emt 0:01:10]} b6 {[%emt 0:00:52]} 8. Be2 {[%emt 0:01:08]} Bb7 {[%emt 0:00:28]} 9. O-O {[%emt 0:00:32]} Be7 {[%emt 0:01:31]} 10. h3 {[%emt 0:02:04]} d5 {[%emt 0:03:18]} 11. Rc1 {[%emt 0:03:05]} Nbd7 {[%emt 0:00:10]} 12. a3 {[%emt 0:00:30]} Rc8 {[%emt 0:00:11]} 13. cxd5 {[%emt 0:10:43]} Nxd5 {[%emt 0:00:39]} 14. Bh2 {[%emt 0:01:54]} Rxc1 {[%emt 0:14:45]} 15. Qxc1 {[%emt 0:00:03]} Nc5 {[%emt 0:02:34]} 16. Nc4 {[%emt 0:09:52]} b5 {[%emt 0:06:08]} 17. Nce5 {[%emt 0:03:58]} f6 {[%emt 0:02:33]} 18. b4 {[%emt 0:03:37]} Na4 {[%emt 0:03:14]} 19. Nc6 {[%emt 0:02:03]} Ndc3 {[%emt 0:01:35]} 20. Nxd8 {[%emt 0:01:33]} Nxe2+ {[%emt 0:00:06]} 21. Kh1 {[%emt 0:00:10]} Nxc1 {[%emt 0:00:07]} 22. Nxb7 {[%emt 0:00:08]} Nd3 {[%emt 0:01:14]} 23. Nd4 {[%emt 0:03:40]} e5 {[%emt 0:00:06]} 24. Nxb5 {[%emt 0:02:08]} Rc8 {[%emt 0:04:49]} 25. N7d6 {[%emt 0:10:26]} Rb8 {[%emt 0:13:54]} 26. Nf5 {[%emt 0:00:45]} Bxb4 {[%emt 0:00:55]} 27. Nxa7 {[%emt 0:02:04]} Bxa3 {[%emt 0:01:25]} 28. Bg1 {[%emt 0:04:19]} Nc3 {[%emt 0:02:08]} 29. Nc6 {[%emt 0:05:01]} Rb2 {[%emt 0:02:43]} 30. Ra1 {[%emt 0:06:50]} Nb1 {[%emt 0:02:39]} 31. Na5 {[%emt 0:02:50]} Nxf2+ {[%emt 0:04:03]} 32. Kh2 {[%emt 0:03:04]} Ne4 {[%emt 0:13:35]} 33. Nc4 {[%emt 0:01:15]} Rb3 {[%emt 0:00:06]} 34. Rxb1 {[%emt 0:04:36]} Rxb1 {[%emt 0:00:07]} 35. Nxa3 {[%emt 0:00:06]} Rf1 {[%emt 0:00:22]} 36. Ne7+ {[%emt 0:07:14]} Kf7 {[%emt 0:00:06]} 37. Nd5 {[%emt 0:03:37]} Ke6 {[%emt 0:02:56]} 38. Nb4 {[%emt 0:00:34]} Nc3 {[%emt 0:00:23]} 39. e4 {[%emt 0:02:23]} Nxe4 {[%emt 0:00:10]} 40. Nd3 {[%emt 0:00:00]} Rd1 {[%emt 0:00:00]} 41. Nc5+ {[%emt 0:01:57]} Nxc5 {[%emt 0:05:41]} 42. Bxc5 {[%emt 0:00:06]} Rc1 {[%emt 0:02:14]} 43. Bf8 {[%emt 0:00:56]} e4 {[%emt 0:03:26]} 44. Kg3 {[%emt 0:03:37]} g5 {[%emt 0:00:24]} 45. Kf2 {[%emt 0:01:55]} f5 {[%emt 0:00:21]} 46. Bh6 {[%emt 0:01:07]} Ra1 {[%emt 0:00:45]} 47. Nc4 {[%emt 0:00:27]} Ra2+ {[%emt 0:00:26]} 48. Kf1 {[%emt 0:00:48]} Ra4 {[%emt 0:02:53]} 49. Nd2 {[%emt 0:01:14]} Kf6 {[%emt 0:02:35]} 50. h4 {[%emt 0:00:27]} gxh4 {[%emt 0:00:04]} 51. Bf4 {[%emt 0:00:20]} Ra1+ {[%emt 0:03:41]} 52. Kf2 {[%emt 0:01:22]} Rh1 {[%emt 0:00:14]} 53. Nf1 {[%emt 0:04:10]} h3 {[%emt 0:00:06]} 54. Ng3 {[%emt 0:01:39]} hxg2 {[%emt 0:00:55]} 55. Kxg2 {[%emt 0:00:17]} Ra1 {[%emt 0:00:24]} 56. Ne2 {[%emt 0:00:41]} Ra2 {[%emt 0:00:28]} 57. Kf2 {[%emt 0:00:09]} Kg6 {[%emt 0:00:15]} 58. Be3 {[%emt 0:01:01]} Kh5 {[%emt 0:00:36]} 59. Bc1 {[%emt 0:02:37]} Kg4 {[%emt 0:00:09]} 60. Bh6 {[%emt 0:00:06]} f4 {[%emt 0:00:06]} 0-1

[Event "Icelandic Team-ch Kvika Leagu 2023-24"]
[Site "Reykjavik"]
[Date "2024.03.02"]
[Round "9"]
[White "Gunnarsson, Jon Viktor"]
[Black "Olafsson, Thorvardur"]
[Result "1-0"]
[ECO "A05"]
[WhiteElo "2442"]
[BlackElo "2105"]
[Annotator "ChessBase"]
[PlyCount "71"]
[EventDate "2024.02.29"]
[EventType "team-tourn"]
[EventCountry "ISL"]
[SourceTitle "playchess.com"]
[Source "ChessBase"]
[SourceQuality "1"]
[TimeControl "40/5400+30:900+30"]

1. b3 {[%emt 0:00:03]} Nf6 {[%emt 0:03:00]} 2. Bb2 {[%emt 0:00:14]} e6 {[%emt 0:00:17]} 3. Nf3 {[%emt 0:00:52]} b6 {[%emt 0:01:36]} 4. d3 {[%emt 0:04:55]} Be7 {[%emt 0:07:17]} 5. Nbd2 {[%emt 0:02:58]} O-O {[%emt 0:01:19]} 6. e3 {[%emt 0:03:36]} Bb7 {[%emt 0:01:27]} 7. Rg1 {[%emt 0:01:12]} Ne8 {[%emt 0:10:53]} 8. g4 {[%emt 0:08:46]} Bf6 {[%emt 0:03:28]} 9. d4 {[%emt 0:01:03]} g6 {[%emt 0:02:32]} 10. Bd3 {[%emt 0:03:16]} Bg7 {[%emt 0:02:32]} 11. Qe2 {[%emt 0:02:18]} c5 {[%emt 0:02:43]} 12. O-O-O {[%emt 0:06:10]} Nc6 {[%emt 0:06:12]} 13. a3 {[%emt 0:03:13]} a5 {[%emt 0:04:50]} 14. c3 {[%emt 0:04:07]} a4 {[%emt 0:08:42]} 15. b4 {[%emt 0:00:19]} cxb4 {[%emt 0:00:35]} 16. cxb4 {[%emt 0:00:12]} Qe7 {[%emt 0:10:17]} 17. Bc3 {[%emt 0:08:49]} Nf6 {[%emt 0:05:05]} 18. e4 {[%emt 0:01:07]} Rfc8 {[%emt 0:00:30]} 19. Kb2 {[%emt 0:00:42]} Na5 {[%emt 0:09:58]} 20. Rc1 {[%emt 0:00:30]} Nb3 {[%emt 0:02:55]} 21. Nxb3 {[%emt 0:01:27]} axb3 {[%emt 0:00:08]} 22. Nd2 {[%emt 0:05:17]} d5 {[%emt 0:05:23]} 23. e5 {[%emt 0:01:55]} Ne4 {[%emt 0:00:24]} 24. Nxe4 {[%emt 0:03:24]} dxe4 {[%emt 0:00:10]} 25. Bxe4 {[%emt 0:00:27]} Bh6 {[%emt 0:00:34]} 26. Ra1 {[%emt 0:02:55]} Qc7 {[%emt 0:03:12]} 27. Rg3 {[%emt 0:00:37]} Bf4 {[%emt 0:04:52]} 28. Rf3 {[%emt 0:10:13]} g5 {[%emt 0:00:38]} 29. Kxb3 {[%emt 0:02:16]} b5 {[%emt 0:01:53]} 30. Kb2 {[%emt 0:02:31]} Bxe4 {[%emt 0:00:35]} 31. Qxe4 {[%emt 0:00:04]} Qc4 {[%emt 0:00:17]} 32. Qd3 {[%emt 0:01:16]} Qd5 {[%emt 0:00:40]} 33. Rh3 {[%emt 0:00:02]} Qg2 {[%emt 0:01:27]} 34. Qxh7+ {[%emt 0:00:17]} Kf8 {[%emt 0:00:04]} 35. Qh8+ {[%emt 0:00:14]} Ke7 {[%emt 0:00:05]} 36. Qf6+ {[%emt 0:00:03]} 1-0

[Event "Icelandic Team-ch Kvika Leagu 2023-24"]
[Site "Reykjavik"]
[Date "2024.03.02"]
[Round "9"]
[White "Petursson, Margeir"]
[Black "Prudnikov, Andrey"]
[Result "1-0"]
[ECO "D85"]
[WhiteElo "2408"]
[BlackElo "2094"]
[Annotator "RC"]
[PlyCount "85"]
[EventDate "2024.02.29"]
[EventType "team-tourn"]
[EventCountry "ISL"]
[SourceTitle "playchess.com"]
[Source "ChessBase"]
[SourceQuality "1"]
[TimeControl "40/5400+30:900+30"]

1. d4 {[%emt 0:00:05]} Nf6 {[%emt 0:00:07]} 2. c4 {[%emt 0:00:37]} g6 {[%emt 0:00:09]} 3. Nc3 {[%emt 0:00:07]} d5 {[%emt 0:00:04]} 4. cxd5 {[%emt 0:01:38]} Nxd5 {[%emt 0:00:07]} 5. e4 {[%emt 0:00:21]} Nxc3 {[%emt 0:00:06]} 6. bxc3 {[%emt 0:00:01]} Bg7 {[%emt 0:00:08]} 7. Rb1 {[%emt 0:00:27]} O-O {[%emt 0:00:14]} 8. Nf3 {[%emt 0:00:51]} c5 {[%emt 0:00:05]} 9. Be2 {[%emt 0:01:33]} Bg4 {[%emt 0:02:32]} 10. Be3 {[%emt 0:13:20]} cxd4 {[%emt 0:09:01]} 11. cxd4 {[%emt 0:00:07]} Qa5+ {[%emt 0:00:03]} 12. Qd2 {[%emt 0:16:48]} Qxd2+ {[%emt 0:00:08]} 13. Nxd2 {[%emt 0:00:20]} Bxe2 {[%emt 0:00:21]} 14. Kxe2 {[%emt 0:00:03]} b6 {[%emt 0:00:34]} 15. Rhc1 {[%emt 0:01:57]} Na6 {[%emt 0:01:13]} 16. Rc4 {[%emt 0:02:39]} Rfc8 {[%emt 0:03:31]} 17. Rbc1 {[%emt 0:02:29]} Rxc4 {[%emt 0:00:39]} 18. Rxc4 {[%emt 0:00:07]} e6 {[%emt 0:00:43]} 19. a3 {[%emt 0:07:52]} Rd8 {[%emt 0:13:51]} 20. Nb3 {[%emt 0:03:34]} Bf8 {[%emt 0:10:02]} 21. Ra4 {[%emt 0:02:28]} Nc7 {[%emt 0:00:10]} 22. Rxa7 {[%emt 0:00:33]} Nb5 {[%emt 0:00:05]} 23. Ra6 {[%emt 0:07:35]} Nxa3 {[%emt 0:01:35]} 24. Rxb6 {[%emt 0:03:34]} Rc8 {[%emt 0:01:15]} 25. Na5 {[%emt 0:05:19]} Ra8 {[%emt 0:08:33]} 26. Bd2 {[%emt 0:02:55]} Be7 {[%emt 0:00:34]} 27. Kd3 {[%emt 0:02:57]} Kg7 {[%emt 0:09:35]} 28. Rb7 {[%emt 0:03:15]} Bf8 {[%emt 0:03:11]} 29. Nc6 {[%emt 0:01:03]} Bd6 {[%emt 0:05:23]} 30. f4 {[%emt 0:01:44]} Rc8 {[%emt 0:03:36]} 31. d5 {[%emt 0:01:43]} exd5 {[%emt 0:02:20]} 32. exd5 {[%emt 0:00:31]} Rc7 {[%emt 0:02:18]} 33. Rb3 {[%emt 0:01:19]} Rc8 {[%emt 0:01:36]} 34. Bc1 {[%emt 0:00:46]} Ra8 {[%emt 0:00:17]} 35. Rb7 {[%emt 0:01:00]} Ra4 {[%emt 0:01:35]} 36. Bb2+ {[%emt 0:03:44]} Kh6 {[%emt 0:00:19]} 37. Be5 {[%emt 0:01:39]} Nc4 {[%emt 0:01:30]} 38. Rxf7 {[%emt 0:00:30]} Bc5 {[%emt 0:00:48]} 39. h3 {[%emt 0:02:38]} Nb6 {[%emt 0:01:13]} 40. Bg7+ {[%emt 0:00:00]} Kh5 {[%emt 0:00:00]} 41. Bd4 {[%emt 0:01:42]} h6 {[%emt 0:06:11]} 42. Bxc5 {[%emt 0:01:35]} Nxd5 {[%emt 0:00:03]} 43. g3 {[%emt 0:01:21]} 1-0

[Event "Icelandic Team-ch Kvika Leagu 2023-24"]
[Site "Reykjavik"]
[Date "2024.03.02"]
[Round "9"]
[White "Arngrimsson, Dagur"]
[Black "Steingrimsson, Hedinn"]
[Result "1/2-1/2"]
[ECO "D27"]
[WhiteElo "2366"]
[BlackElo "2477"]
[Annotator "RC"]
[PlyCount "62"]
[EventDate "2024.02.29"]
[EventType "team-tourn"]
[EventCountry "ISL"]
[SourceTitle "playchess.com"]
[Source "ChessBase"]
[SourceQuality "1"]
[TimeControl "40/5400+30:900+30"]

1. d4 {[%emt 0:00:07]} Nf6 {[%emt 0:01:01]} 2. c4 {[%emt 0:01:16]} e6 {[%emt 0:00:10]} 3. Nf3 {[%emt 0:00:25]} d5 {[%emt 0:00:06]} 4. Nc3 {[%emt 0:01:55]} dxc4 {[%emt 0:00:33]} 5. e3 {[%emt 0:03:13]} a6 {[%emt 0:00:17]} 6. a4 {[%emt 0:03:32]} c5 {[%emt 0:03:01]} 7. Bxc4 {[%emt 0:00:16]} Nc6 {[%emt 0:00:03]} 8. O-O {[%emt 0:00:22]} Be7 {[%emt 0:00:18]} 9. dxc5 {[%emt 0:06:23]} Bxc5 {[%emt 0:16:40]} 10. Qxd8+ {[%emt 0:08:42]} Kxd8 {[%emt 0:00:13]} 11. Bd2 {[%emt 0:01:04]} b6 {[%emt 0:04:17]} 12. Rfd1 {[%emt 0:09:11]} Ke7 {[%emt 0:02:08]} 13. Na2 {[%emt 0:02:40]} Ne4 {[%emt 0:08:38]} 14. Be1 {[%emt 0:00:43]} a5 {[%emt 0:00:57]} 15. Bb5 {[%emt 0:03:45]} Bb7 {[%emt 0:04:23]} 16. Nc3 {[%emt 0:18:58]} Nd6 {[%emt 0:04:14]} 17. Bxc6 {[%emt 0:05:02]} Bxc6 {[%emt 0:00:03]} 18. Ne5 {[%emt 0:00:08]} Rac8 {[%emt 0:09:57]} 19. Nd3 {[%emt 0:02:57]} Nb7 {[%emt 0:00:52]} 20. Rab1 {[%emt 0:03:10]} Rhd8 {[%emt 0:04:03]} 21. b4 {[%emt 0:02:41]} Rxd3 {[%emt 0:12:12]} 22. Rxd3 {[%emt 0:00:47]} axb4 {[%emt 0:00:08]} 23. Na2 {[%emt 0:02:06]} Be4 {[%emt 0:00:40]} 24. Nxb4 {[%emt 0:00:42]} Ke8 {[%emt 0:03:10]} 25. Rc1 {[%emt 0:03:44]} Bxd3 {[%emt 0:05:39]} 26. Nxd3 {[%emt 0:00:05]} Rd8 {[%emt 0:00:46]} 27. Nb2 {[%emt 0:06:44]} Ra8 {[%emt 0:09:29]} 28. Rb1 {[%emt 0:01:35]} Nd6 {[%emt 0:01:06]} 29. Kf1 {[%emt 0:01:43]} Kd7 {[%emt 0:00:20]} 30. Ke2 {[%emt 0:02:11]} h5 {[%emt 0:01:41]} 31. f3 {[%emt 0:04:05]} Ba3 {[%emt 0:05:22]} 1/2-1/2

[Event "Icelandic Team-ch Kvika Leagu 2023-24"]
[Site "Reykjavik"]
[Date "2024.03.02"]
[Round "9"]
[White "Domalchuk-Jonasson, Aleksandr"]
[Black "Hansen, Soren Bech"]
[Result "1/2-1/2"]
[ECO "E32"]
[WhiteElo "2355"]
[BlackElo "2213"]
[Annotator "RC"]
[PlyCount "43"]
[EventDate "2024.02.29"]
[EventType "team-tourn"]
[EventCountry "ISL"]
[SourceTitle "playchess.com"]
[Source "ChessBase"]
[SourceQuality "1"]
[TimeControl "40/5400+30:900+30"]

1. d4 {[%emt 0:00:03]} Nf6 {[%emt 0:00:59]} 2. c4 {[%emt 0:01:21]} e6 {[%emt 0:00:05]} 3. Nc3 {[%emt 0:00:35]} Bb4 {[%emt 0:00:06]} 4. Qc2 {[%emt 0:00:12]} O-O {[%emt 0:00:10]} 5. a3 {[%emt 0:02:00]} Bxc3+ {[%emt 0:00:09]} 6. Qxc3 {[%emt 0:00:02]} b6 {[%emt 0:00:08]} 7. Bg5 {[%emt 0:00:29]} Ba6 {[%emt 0:00:07]} 8. Qf3 {[%emt 0:00:39]} Nc6 {[%emt 0:00:08]} 9. e3 {[%emt 0:00:09]} Na5 {[%emt 0:00:33]} 10. Rc1 {[%emt 0:00:43]} c5 {[%emt 0:00:06]} 11. d5 {[%emt 0:00:25]} exd5 {[%emt 0:00:08]} 12. cxd5 {[%emt 0:00:18]} Bxf1 {[%emt 0:00:06]} 13. Kxf1 {[%emt 0:00:03]} Re8 {[%emt 0:00:05]} 14. Bxf6 {[%emt 0:03:08]} Qxf6 {[%emt 0:00:06]} 15. Qxf6 {[%emt 0:00:03]} gxf6 {[%emt 0:00:07]} 16. Ne2 {[%emt 0:01:21]} Nb3 {[%emt 0:03:42]} 17. Rc2 {[%emt 0:03:00]} Re5 {[%emt 0:00:06]} 18. Nf4 {[%emt 0:01:02]} f5 {[%emt 0:05:26]} 19. g3 {[%emt 0:04:29]} f6 {[%emt 0:00:27]} 20. Kg2 {[%emt 0:00:16]} b5 {[%emt 0:07:49]} 21. Rd1 {[%emt 0:01:32]} Kf7 {[%emt 0:09:26]} 22. Kf3 {[%emt 0:08:18]} 1/2-1/2